bitfinex-derivatives/quotes_SOLF0:USTF0_20250331
["timestamp","ask_amount","ask_price","bid_price","bid_amount"]
[1743429612172,11.16885994,125.56,125.53,7.9672]
[1743429612372,0.060834,125.55,125.53,7.9672]
[1743429612774,11.22969394,125.55,125.51,0.06030898]
[1743429612971,0.060834,125.55,125.52,14.38700282]
[1743429613271,7.9635,125.6,125.57,7.9649]
[1743429613472,19.13235994,125.6,125.57,7.9649]
[1743429613665,11.16885994,125.6,125.57,36.58]
[1743429613977,4.0447,125.65,125.58,14.38700282]
[1743429614175,4.0447,125.65,125.59,62.0]
[1743429614477,7.9626,125.61,125.6,0.05389121]
[1743429614866,19.13145994,125.61,125.6,0.05389121]
[1743429615176,0.05193677,125.63,125.6,0.05389121]
[1743429615377,11.22079671,125.63,125.6,0.05389121]
[1743429615771,34.21800359,125.63,125.6,0.05389121]
[1743429616176,7.9625,125.61,125.6,0.05389121]
[1743429616372,4.3111,125.62,125.59,62.0]
[1743429616770,22.99720688,125.61,125.53,4.0153]
[1743429616974,22.99720688,125.61,125.54,36.56]
[1743429617175,70.72606682,125.61,125.54,36.56]
[1743429617376,7.9658,125.56,125.54,36.56]
[1743429617576,0.05472783,125.59,125.56,0.05186856]
[1743429617876,8.02189886,125.59,125.56,0.05186856]
[1743429618077,11.2268588,125.59,125.56,0.05186856]
[1743429619682,11.2268588,125.59,125.57,7.9649]
[1743429619882,0.05799886,125.59,125.58,62.0]
[1743429620084,286.88,125.66,125.58,98.56]
[1743429620289,11.16885994,125.66,125.61,7.962]
[1743429620585,22.99720688,125.65,125.58,62.0]
[1743429620774,7.9643,125.59,125.55,44.5263]
[1743429620976,22.99720688,125.63,125.55,36.56]
[1743429621181,11.16885994,125.63,125.55,36.56]
[1743429621388,0.05814051,125.6,125.59,7.9635]
[1743429623190,0.05814051,125.6,125.58,0.05647266]
[1743429623386,11.22700045,125.6,125.58,0.05647266]
[1743429623588,7.9638,125.59,125.58,0.05647266]
[1743429623989,19.13265994,125.59,125.58,0.05647266]
[1743429624293,0.05814051,125.6,125.58,0.05647266]
[1743429624485,11.22700045,125.6,125.58,0.05647266]
[1743429625387,7.9638,125.59,125.58,0.05647266]
[1743429625683,11.22700045,125.6,125.58,0.05647266]
[1743429626486,7.9638,125.59,125.58,0.05647266]
[1743429626679,11.22700045,125.6,125.58,0.05647266]
[1743429627288,7.9638,125.59,125.58,0.05647266]
[1743429627690,11.16885994,125.59,125.58,0.05647266]
[1743429628290,11.16885994,125.59,125.58,8.02087266]
[1743429628587,11.16885994,125.59,125.58,0.05647266]
[1743429628987,0.05814051,125.6,125.58,8.02087266]
[1743429629301,11.22700045,125.6,125.58,8.02087266]
[1743429629389,11.22700045,125.6,125.59,62.0]
[1743429630281,11.22700045,125.6,125.58,0.05647266]
[1743429631391,7.9638,125.59,125.58,0.05647266]
[1743429631590,11.22700045,125.6,125.58,0.05647266]
[1743429632392,7.9638,125.59,125.58,0.05647266]
[1743429632893,19.13265994,125.59,125.58,0.05647266]
[1743429633490,0.05814051,125.6,125.58,0.05647266]
[1743429633793,0.05814051,125.6,125.58,59.57367954]
[1743429633995,11.22700045,125.6,125.58,0.05647266]
[1743429634990,11.22700045,125.6,125.59,7.9638]
[1743429634991,0.05814051,125.6,125.59,7.9638]
[1743429635590,0.05814051,125.6,125.58,44.54057266]
[1743429635792,11.22700045,125.6,125.58,36.57647266]
[1743429636100,19.19040045,125.6,125.58,36.57647266]
[1743429636304,11.22700045,125.6,125.58,36.57647266]
[1743429636494,11.22700045,125.6,125.58,0.05647266]
[1743429636695,11.22700045,125.6,125.58,62.05647266]
[1743429637200,7.9638,125.59,125.58,62.05647266]
[1743429637406,7.9638,125.59,125.58,0.05647266]
[1743429637702,19.13265994,125.59,125.58,0.05647266]
[1743429639005,7.9638,125.59,125.58,0.05647266]
[1743429639204,0.05814051,125.6,125.58,0.05647266]
[1743429639406,11.22700045,125.6,125.58,0.05647266]
[1743429639603,0.05814051,125.6,125.58,0.05647266]
[1743429639803,0.05814051,125.6,125.59,7.9638]
[1743429640000,0.05814051,125.6,125.58,0.05647266]
[1743429640200,11.22700045,125.6,125.58,0.05647266]
[1743429640401,19.19020045,125.6,125.59,62.0]
[1743429640900,0.05814051,125.6,125.59,62.0]
[1743429642210,0.05814051,125.6,125.59,98.52]
[1743429642705,4.2689,125.68,125.59,98.52]
[1743429643009,15.43775994,125.68,125.61,14.37740867]
[1743429643210,7.9595,125.66,125.63,7.9609]
[1743429645011,11.16885994,125.65,125.64,0.05365277]
[1743429645611,7.9636,125.6,125.56,337.45740867]
[1743429645810,7.9636,125.6,125.56,50.87740867]
[1743429646012,14.37740867,125.63,125.57,7.9646]
[1743429646310,25.54626861,125.63,125.57,62.0]
[1743429646511,25.54626861,125.63,125.57,69.9647]
[1743429646711,0.05039977,125.61,125.59,0.05559492]
[1743429647511,0.05039977,125.61,125.6,7.9632]
[1743429647908,0.05039977,125.61,125.59,0.05559492]
[1743429648105,11.21925971,125.61,125.59,0.05559492]
[1743429648309,25.59666838,125.61,125.59,0.05559492]
[1743429648704,7.9632,125.6,125.59,0.05559492]
[1743429649018,50.92780844,125.61,125.56,8.7302082]
[1743429649210,7.9657,125.56,125.55,80.96741686]
[1743429649415,50.87740867,125.57,125.53,210.20537419]
[1743429649607,14.37740867,125.54,125.53,31.06284023]
[1743429649809,7.967,125.54,125.53,31.06284023]
[1743429651110,22.34440867,125.54,125.53,31.06284023]
[1743429651307,30.30440867,125.54,125.53,31.06284023]
[1743429651713,31.0098042,125.54,125.53,31.06284023]
[1743429652314,7.9676,125.53,125.52,0.06048362]
[1743429652507,44.4676,125.53,125.52,0.06048362]
[1743429652708,36.5,125.53,125.52,0.06048362]
[1743429652915,334.0116902,125.54,125.52,0.06048362]
[1743429653409,7.9676,125.53,125.52,0.06048362]
[1743429654010,100.77939747,125.53,125.52,0.06048362]
[1743429654410,92.81179747,125.53,125.52,0.06048362]
[1743429655219,86.23629747,125.53,125.52,0.06048362]
[1743429655415,73.08349747,125.53,125.51,59.50084662]
[1743429655617,116.8141902,125.54,125.51,59.50084662]
[1743429656011,218.43657148,125.53,125.51,59.50084662]
[1743429656317,179.00337148,125.53,125.51,59.50084662]
[1743429656519,179.00337148,125.53,125.51,67.46084662]
[1743429656722,179.00337148,125.53,125.52,7.9682]
[1743429657410,123.91522986,125.54,125.53,7.9676]
[1743429657612,1.595e-05,125.55,125.53,85.0428042]
[1743429658215,1.595e-05,125.55,125.54,7.967]
[1743429658716,10.92356833,125.58,125.57,7.9651]
[1743429658913,10.92356833,125.58,125.57,67.5079042]
[1743429659518,10.92356833,125.58,125.57,36.5]
[1743429660318,10.92356833,125.58,125.57,67.5079042]
[1743429660522,178.76319956,125.6,125.57,67.5028042]
[1743429660716,7.38139183,125.6,125.59,23.0428042]
[1743429660923,12.7714,125.69,125.59,23.0428042]
[1743429661219,12.7714,125.69,125.61,23.0428042]
[1743429661419,7.961,125.64,125.61,36.5]
[1743429661923,7.961,125.64,125.61,36.55646813]
[1743429662113,23.10161668,125.66,125.61,36.55646813]
[1743429662314,23.10161668,125.66,125.61,0.05646813]
[1743429662517,7.961,125.64,125.61,0.05646813]
[1743429663016,0.05881248,125.66,125.62,36.5]
[1743429663514,0.05881248,125.66,125.64,7.9602]
[1743429663815,0.05881248,125.66,125.62,36.5]
[1743429664017,12.6462,125.75,125.65,23.0428042]
[1743429664337,12.6462,125.75,125.67,23.0428042]
[1743429664522,12.6462,125.75,125.66,36.48]
[1743429664819,23.0428042,125.74,125.66,36.48]
[1743429665023,23.0428042,125.72,125.66,36.48]
[1743429665216,7.9584,125.68,125.66,36.48]
[1743429665421,7.9584,125.68,125.64,139.9446018]
[1743429665618,7.9587,125.67,125.66,0.0560458]
[1743429666222,31.06169226,125.68,125.66,0.0560458]
[1743429666522,0.06068806,125.68,125.66,0.0560458]
[1743429667025,0.06068806,125.68,125.67,62.0]
[1743429667224,0.06068806,125.68,125.66,0.0560458]
[1743429667424,7.9587,125.67,125.66,0.0560458]
[1743429668616,8.01908806,125.68,125.66,0.0560458]
[1743429668816,0.06068806,125.68,125.66,0.0560458]
[1743429669021,8.01918806,125.68,125.66,0.0560458]
[1743429669321,0.06068806,125.68,125.66,0.0560458]
[1743429670221,0.06068806,125.68,125.67,62.0]
[1743429670626,0.06068806,125.68,125.67,69.9587]
[1743429722142,0.05372082,125.85,125.84,36.34]
[1743429722334,8.00102082,125.85,125.84,36.34]
[1743429722641,8.00102082,125.85,125.83,86.733976]
[1743429722642,0.05372082,125.85,125.83,86.733976]
[1743429723645,7.948,125.84,125.83,86.733976]
[1743429724039,0.05372082,125.85,125.83,86.733976]
[1743429724447,27.84804145,125.87,125.83,0.05417637]
[1743429725244,4.0563,125.88,125.83,0.05417637]
[1743429725446,23.0428042,125.86,125.83,0.05417637]
[1743429725744,4.0563,125.88,125.76,86.67979963]
[1743429725745,23.0428042,125.84,125.76,86.67979963]
[1743429725950,8.5196,125.83,125.76,86.67979963]
[1743429726144,44.9796,125.83,125.77,5.26979]
[1743429726449,7.95,125.81,125.77,5.26979]
[1743429726642,4.0415,125.8,125.77,5.26979]
[1743429727141,4.09300966,125.8,125.77,5.32342567]
[1743429727450,8.5196,125.83,125.79,23.0428042]
[1743429727747,4.0415,125.86,125.81,23.0428042]
[1743429727947,4.0415,125.86,125.8,36.42]
[1743429728149,4.2318,125.85,125.77,352.09541229]
[1743429728344,7.948,125.84,125.77,327.66979]
[1743429728643,0.05623504,125.82,125.79,0.06097195]
[1743429728846,0.05623504,125.82,125.79,85.10377615]
[1743429729247,3.504e-05,125.82,125.81,23.0428042]
[1743429729446,3.504e-05,125.82,125.81,59.5628042]
[1743429729644,4.0415,125.86,125.81,67.5028042]
[1743429729840,4.0415,125.86,125.81,59.5628042]
[1743429730047,4.0415,125.86,125.82,7.949]
[1743429730647,4.0415,125.86,125.83,0.05512677]
[1743429730855,0.05798787,125.85,125.83,23.09793097]
[1743429731350,0.05798787,125.85,125.84,7.948]
[1743429733358,0.05798787,125.85,125.83,8.00342677]
[1743429733660,0.05798787,125.85,125.83,0.05512677]
[1743429734249,0.05798787,125.85,125.83,8.00372677]
[1743429734455,36.74,125.89,125.83,0.05512677]
[1743429734760,7.9465,125.87,125.83,0.05512677]
[1743429735154,7.9465,125.87,125.83,8.00332677]
[1743429735452,36.74,125.89,125.83,0.05512677]
[1743429736964,7.9463,125.87,125.83,8.00332677]
[1743429737358,23.0428042,125.88,125.83,0.05512677]
[1743429738866,7.9475,125.85,125.83,0.05512677]
[1743429739068,8.4216,125.84,125.83,0.05512677]
[1743429739362,8.4216,125.84,125.83,8.00372677]
[1743429739957,4.3126,125.9,125.87,7.9456]
[1743429740260,27.3554042,125.9,125.8,23.0428042]
[1743429740560,27.3554042,125.9,125.84,7.948]
[1743429740759,27.3554042,125.9,125.84,8.00680798]
[1743429740958,64.2154042,125.9,125.84,0.05880798]
[1743429741367,23.0428042,125.88,125.84,0.05880798]
[1743429743562,23.0428042,125.86,125.84,0.05880798]
[1743429743759,8.556,125.85,125.84,0.05880798]
[1743429743970,16.5033,125.85,125.84,0.05880798]
[1743429744266,16.496,125.85,125.77,5.26979]
[1743429744461,23.0428042,125.83,125.77,5.26979]
[1743429744667,23.0428042,125.81,125.77,5.26979]
[1743429745268,0.0504121,125.8,125.78,0.05963433]
[1743429745762,0.0504121,125.8,125.79,7.9511]
[1743429746268,8.0012121,125.8,125.78,0.05963433]
[1743429746865,0.0504121,125.8,125.78,0.05963433]
[1743429747865,0.0504121,125.8,125.78,8.01133433]
[1743429748872,0.0504121,125.8,125.78,0.05963433]
[1743429749359,0.0504121,125.8,125.78,8.01123433]
[1743429749765,8.0010121,125.8,125.78,0.05963433]
[1743429749966,0.0504121,125.8,125.79,44.4511]
[1743429750573,8.556,125.85,125.79,36.5]
[1743429750771,12.254,125.87,125.79,36.5]
[1743429751069,4.3076,125.87,125.79,36.5]
[1743429751772,4.3076,125.87,125.82,0.06090132]
[1743429752972,7.9476,125.85,125.82,0.06090132]
[1743429753166,4.3076,125.87,125.83,7.9486]
[1743429753368,4.3076,125.87,125.82,0.06090132]
[1743429753871,23.0428042,125.85,125.79,123.17979963]
[1743429754070,23.0428042,125.85,125.79,86.67979963]
[1743429754278,4.3076,125.87,125.8,36.38]
[1743429754573,12.254,125.87,125.8,36.38]
[1743429754873,4.3076,125.87,125.82,7.949]
[1743429755072,0.05915732,125.85,125.82,0.05574886]
[1743429756573,7.9486,125.83,125.82,0.05574886]
[1743429756969,0.05915732,125.85,125.82,0.05574886]
[1743429757469,23.0428042,125.83,125.8,124.91209519]
[1743429757668,23.0428042,125.83,125.79,2.16016187]
[1743429757669,23.0428042,125.81,125.79,2.16016187]
[1743429757870,23.0428042,125.8,125.77,225.4992259]
[1743429758066,30.9946042,125.78,125.77,105.23178186]
[1743429758271,67.3746042,125.78,125.77,105.23178186]
[1743429758572,44.3318,125.78,125.77,105.23178186]
[1743429759972,23.0428042,125.95,125.78,39.853]
[1743429760273,23.0428042,125.97,125.9,7.9436]
[1743429760479,23.0428042,125.97,125.91,36.38]
[1743429760776,23.0428042,125.98,125.85,23.0428042]
[1743429760977,0.05066239,125.93,125.9,0.06019276]
[1743429761278,0.05066239,125.93,125.9,36.38]
[1743429761474,0.05066239,125.93,125.9,36.43654604]
[1743429761879,0.05066239,125.93,125.9,44.38064604]
[1743429762177,0.05066239,125.93,125.9,36.43654604]
[1743429762579,87.72425144,125.91,125.9,0.05654604]
[1743429763073,131.63703956,125.93,125.9,0.05654604]
[1743429763274,125.06543956,125.93,125.92,37.18135094]
[1743429763475,112.11413956,125.93,125.92,45.12425094]
[1743429763672,200.87992861,125.94,125.92,107.12135094]
[1743429763874,87.72666817,125.94,125.92,99.18135094]
[1743429764073,43.35846817,125.94,125.93,7.9423]
[1743429764375,274.16578358,125.95,125.92,45.12135094]
[1743429764579,274.16578358,125.95,125.94,45.12305094]
[1743429765081,9.781e-05,125.95,125.94,45.12305094]
[1743429767181,9.781e-05,125.95,125.94,107.12305094]
[1743429767876,78.61710848,125.98,125.97,7.9398]
[1743429768084,78.61710848,125.98,125.97,44.3398]
[1743429768480,290.071,126.02,125.97,36.4]
[1743429768674,290.071,126.02,125.94,37.18135094]
[1743429768873,3.971,126.02,125.97,37.18135094]
[1743429769079,4.3249,126.04,126.02,7.9366]
[1743429769276,407.40065094,126.1,126.01,36.46]
[1743429769477,3.9516,126.09,126.05,7.9346]
[1743429769686,8.2193,126.1,126.06,36.42]
[1743429770087,8.2193,126.1,126.07,7.99104358]
[1743429770280,8.2193,126.1,126.07,0.05774358]
[1743429770480,8.2193,126.1,126.08,7.9322]
[1743429770682,43.78707213,126.14,126.08,37.18135094]
[1743429770882,43.78707213,126.14,126.11,37.18135094]
[1743429771082,43.78707213,126.14,126.12,36.36]
[1743429771387,3.9516,126.2,126.12,36.36]
[1743429771579,3.9516,126.2,126.11,37.18135094]
[1743429771785,3.9516,126.2,126.12,36.6]
[1743429771983,36.6,126.19,126.14,0.05690493]
[1743429772183,3.9516,126.2,126.12,36.6]
[1743429772886,3.9516,126.2,126.13,37.18135094]
[1743429773280,0.0512472,126.18,126.15,0.05185749]
[1743429774591,0.0512472,126.18,126.16,62.0]
[1743429774890,0.0512472,126.18,126.15,0.05185749]
[1743429775385,0.0512472,126.18,126.15,37.23320843]
[1743429775586,0.0512472,126.18,126.15,0.05185749]
[1743429776792,322.74135094,126.17,126.06,36.72]
[1743429776980,37.18135094,126.15,126.06,36.72]
[1743429777185,647.56,126.17,126.03,36.68]
[1743429777186,37.18135094,126.13,126.03,36.68]
[1743429777384,8.1453,126.12,126.03,36.68]
[1743429777792,8.1453,126.12,126.04,62.0]
[1743429777989,0.05431736,126.09,126.06,0.0522827]
[1743429779685,7.9334,126.08,126.06,0.0522827]
[1743429779886,322.7556683,126.09,126.0,36.8]
[1743429780082,322.7556683,126.09,125.97,73.96135094]
[1743429780083,37.18135094,126.07,125.97,73.96135094]
[1743429780283,37.18135094,126.05,125.97,36.78]
[1743429780489,4.1843,126.04,125.97,36.78]
[1743429780691,4.1843,126.04,125.98,37.18135094]
[1743429780884,0.05105122,126.02,125.98,37.18135094]
[1743429781086,0.05105122,126.02,125.99,0.05973588]
[1743429781288,0.00935122,126.02,126.0,37.18135094]
[1743429781496,285.52,126.09,126.01,36.86]
[1743429781689,399.18135094,126.14,126.02,37.18135094]
[1743429781890,7.9323,126.09,126.02,37.18135094]
[1743429782089,399.18135094,126.14,126.02,37.18135094]
[1743429782286,7.9302,126.13,126.04,45.11665094]
[1743429782494,721.66135094,126.14,126.03,62.0]
[1743429782693,0.05054743,126.1,126.07,0.05872841]
[1743429782889,7.9326,126.09,126.07,0.05872841]
[1743429783291,37.21054743,126.1,126.01,36.86]
[1743429783490,37.16,126.1,126.01,36.86]
[1743429783892,7.9339,126.07,126.01,36.86]
[1743429784091,37.16,126.1,126.01,36.86]
[1743429784392,0.05058936,126.07,126.04,0.06096278]
[1743429785487,7.98448936,126.07,126.04,0.06096278]
[1743429785693,0.05058936,126.07,126.04,0.06096278]
[1743429786092,7.9342,126.06,126.04,0.06096278]
[1743429786596,7.98428936,126.07,126.04,0.06096278]
[1743429786793,0.05058936,126.07,126.04,0.06096278]
[1743429788200,7.9344,126.06,126.04,0.06096278]
[1743429788400,0.05058936,126.07,126.04,0.06096278]
[1743429789699,7.9347,126.06,126.04,0.06096278]
[1743429789898,0.05058936,126.07,126.04,0.06096278]
[1743429790299,7.98458936,126.07,126.04,0.06096278]
[1743429790802,0.05058936,126.07,126.04,0.06096278]
[1743429791406,0.05058936,126.07,126.04,37.30096278]
[1743429792402,4.3068,126.15,126.05,99.18135094]
[1743429792599,7.9292,126.14,126.08,45.11375094]
[1743429792905,4.3068,126.15,126.09,37.2]
[1743429793102,7.9303,126.13,126.09,37.2]
[1743429793505,4.3068,126.15,126.09,37.2]
[1743429793804,4.3068,126.15,126.1,0.05044445]
[1743429793805,0.06097518,126.12,126.1,0.05044445]
[1743429794100,7.931,126.11,126.1,0.05044445]
[1743429794699,0.06097518,126.12,126.1,0.05044445]
[1743429796009,0.06097518,126.12,126.1,99.77044445]
[1743429796401,7.99137518,126.12,126.1,99.77044445]
[1743429796808,0.06097518,126.12,126.1,99.77044445]
[1743429797303,0.06097518,126.12,126.1,0.05044445]
[1743429797507,7.931,126.11,126.1,0.05044445]
[1743429798812,7.99147518,126.12,126.1,0.05044445]
[1743429799511,0.06097518,126.12,126.1,0.05044445]
[1743429800205,7.99137518,126.12,126.1,0.05044445]
[1743429800405,7.99137518,126.12,126.11,62.0]
[1743429800908,0.06097518,126.12,126.11,62.0]
[1743429801408,7.931,126.11,126.1,0.05044445]
[1743429803410,48.0,126.11,125.99,40.1]
[1743429803609,37.18135094,126.09,125.99,40.1]
[1743429804408,0.05450849,126.05,126.03,0.05388928]
[1743429804607,0.05450849,126.05,126.04,40.04]
[1743429804809,8.0126,126.1,126.04,40.04]
[1743429805010,0.05121572,126.06,126.03,0.05388928]
[1743429805305,0.05121572,126.06,126.0,62.0]
[1743429805306,0.05121572,126.06,126.0,102.04]
[1743429805505,7.98571572,126.06,126.03,0.05091633]
[1743429806305,7.9348,126.05,126.03,0.05091633]
[1743429806501,0.05121572,126.06,126.03,0.05091633]
[1743429806900,37.23256666,126.06,125.96,109.51006401]
[1743429807105,37.18135094,126.04,125.96,109.51006401]
[1743429807303,37.18135094,126.02,125.96,85.62384951]
[1743429808211,37.2398628,126.0,125.98,0.05013498]
[1743429808411,7.9398,125.97,125.96,85.62384951]
[1743429808611,37.2398628,126.0,125.96,85.62384951]
[1743429809313,0.05851186,126.0,125.96,85.62384951]
[1743429809610,7.9395,125.98,125.97,0.05068944]
[1743429809803,0.05851186,126.0,125.97,0.05068944]
[1743429810609,37.2398628,126.0,125.96,85.62384951]
[1743429810803,7.9398,125.97,125.96,85.62384951]
[1743429811003,7.9398,125.97,125.96,79.05724951]
[1743429811201,7.9398,125.97,125.96,52.79274951]
[1743429811909,77.08135094,125.98,125.95,131.1567136]
[1743429812210,77.08135094,125.98,125.95,118.0257136]
[1743429812403,77.13343466,125.98,125.95,118.0257136]
[1743429812609,0.05208372,125.98,125.95,118.0257136]
[1743429814012,0.05208372,125.98,125.95,0.05753008]
[1743429814907,0.05208372,125.98,125.95,7.99823008]
[1743429815112,0.05208372,125.98,125.95,39.71753008]
[1743429815504,0.05208372,125.98,125.95,0.05753008]
[1743429815909,7.9404,125.96,125.95,0.05753008]
[1743429821917,7.9401,125.97,125.95,0.05753008]
[1743429822225,0.05208372,125.98,125.95,0.05753008]
[1743429824626,39.54,125.97,125.95,0.05753008]
[1743429825415,7.9404,125.96,125.95,0.05753008]
[1743429829323,0.05208372,125.98,125.95,0.05753008]
[1743429829324,7.9401,125.97,125.95,22.92749381]
[1743429829622,0.05208372,125.98,125.95,30.86819381]
[1743429829929,401.08,126.05,125.97,22.86996373]
[1743429830233,362.0,126.05,125.97,30.80936373]
[1743429830431,362.0,126.05,125.97,22.86996373]
[1743429830723,362.0,126.05,125.96,39.08]
[1743429830926,22.86996373,126.02,125.92,62.0]
[1743429831117,366.2561,126.01,125.99,0.05258105]
[1743429831318,7.9405,125.96,125.93,22.86996373]
[1743429831519,384.86996373,126.0,125.92,62.0]
[1743429831725,384.86996373,126.0,125.88,39.06]
[1743429832030,7.942,125.94,125.88,39.06]
[1743429832329,39.04,125.97,125.88,39.06]
[1743429832722,0.05269499,125.94,125.91,0.05016272]
[1743429834623,7.99469499,125.94,125.92,62.0]
[1743429834831,0.05269499,125.94,125.92,62.0]
[1743429835129,7.9423,125.93,125.92,62.0]
[1743429835329,0.05269499,125.94,125.91,0.05016272]
[1743429835724,7.9429,125.92,125.91,0.05016272]
[1743429839025,7.9429,125.92,125.83,22.86996373]
[1743429839026,39.1,125.92,125.81,39.1]
[1743429839328,22.86996373,125.91,125.82,12.4937]
[1743429839827,22.86996373,125.91,125.82,20.4426]
[1743429840228,0.05636989,125.88,125.82,12.4937]
[1743429840431,0.05636989,125.88,125.85,0.05761374]
[1743429840627,7.9473,125.86,125.85,0.05761374]
[1743429842728,0.05636989,125.88,125.85,0.05761374]
[1743429843529,7.9464,125.87,125.85,0.05761374]
[1743429843827,0.05636989,125.88,125.85,0.05761374]
[1743429844227,296.76676803,125.96,125.86,22.86996373]
[1743429844523,22.86996373,125.93,125.85,38.92]
[1743429845233,7.9453,125.89,125.85,38.92]
[1743429845427,0.05633151,125.9,125.88,0.05553279]
[1743429846225,7.9448,125.89,125.88,62.05553279]
[1743429846535,285.82,125.96,125.88,62.05553279]
[1743429846736,562.72470636,126.01,125.89,47.6055]
[1743429846929,7.9411,125.95,125.92,7.9424]
[1743429847522,7.99541571,125.95,125.92,7.99997521]
[1743429847728,0.05431571,125.95,125.92,0.05757521]
[1743429848127,0.05431571,125.95,125.93,39.24]
[1743429848532,22.86996373,125.99,125.94,7.9417]
[1743429848935,10.94676803,126.0,125.93,39.24]
[1743429849139,18.88496803,126.0,125.97,7.9397]
[1743429849435,10.94676803,126.0,125.97,39.2]
[1743429849628,27.25013176,126.06,125.97,39.2]
[1743429849835,0.05545109,126.0,125.98,8.617]
[1743429850132,0.0603492,126.0,125.98,8.67537576]
[1743429850335,0.0603492,126.0,125.98,0.05837576]
[1743429850737,22.86996373,125.99,125.93,39.14]
[1743429850936,22.86996373,125.94,125.86,22.63380213]
[1743429851132,7.9445,125.9,125.86,66.11100213]
[1743429851333,22.86996373,125.94,125.86,66.11100213]
[1743429851535,62.02996373,125.96,125.86,66.11100213]
[1743429851740,7.9425,125.93,125.87,1.44703318]
[1743429852034,0.05633979,125.92,125.9,0.05753172]
[1743429852243,7.941,125.96,125.9,39.15753172]
[1743429852440,22.86996373,126.01,125.9,61.96996373]
[1743429852632,7.9395,125.98,125.94,7.9412]
[1743429852836,285.78,126.02,125.94,39.18]
[1743429853143,22.86996373,126.04,125.95,8.444]
[1743429853336,0.05058065,125.99,125.97,0.05829141]
[1743429853537,12.4926,126.07,125.98,39.16]
[1743429853736,7.9351,126.05,125.98,76.27032375]
[1743429853938,394.8403041,126.09,125.98,76.27032375]
[1743429854330,394.8403041,126.09,126.0,7.9374]
[1743429854538,394.8403041,126.09,125.98,76.27032375]
[1743429854737,0.05550571,126.06,126.03,0.05108772]
[1743429855137,7.9358,126.04,126.03,0.05108772]
[1743429855541,7.9358,126.04,125.95,8.444]
[1743429855542,76.33032375,126.04,125.95,47.664]
[1743429855736,7.9389,125.99,125.96,62.0]
[1743429856137,7.9381,126.0,125.97,7.9397]
[1743429856335,7.9381,126.0,125.96,62.0]
[1743429856336,76.33032375,126.04,125.95,47.664]
[1743429856735,7.99279639,126.01,125.98,7.99265146]
[1743429856936,0.05529639,126.01,125.99,39.22]
[1743429857141,285.74,126.06,126.0,4.2598]
[1743429857342,7.9369,126.02,126.0,4.2598]
[1743429857540,322.85032375,126.06,126.0,4.2598]
[1743429858135,322.85032375,126.06,125.97,39.3]
[1743429858444,7.936,126.03,126.02,0.0517948]
[1743429858748,7.94,126.03,125.95,8.444]
[1743429858940,37.11032375,126.02,125.96,7.9404]
[1743429859142,37.11032375,126.02,125.95,8.444]
[1743429859143,37.11032375,126.04,125.95,8.444]
[1743429859344,37.11032375,126.04,125.96,62.0]
[1743429859544,7.938,126.0,125.97,7.9395]
[1743429859742,0.05902016,126.01,125.99,0.05614199]
[1743429859947,7.99692016,126.01,125.99,0.05614199]
[1743429860948,7.9379,126.0,125.99,0.05614199]
[1743429861349,0.05902016,126.01,125.99,0.05614199]
[1743429862250,285.74,126.06,125.99,0.05614199]
[1743429862442,37.11032375,126.11,126.0,37.11032375]
[1743429862649,37.11032375,126.09,126.01,39.32]
[1743429862843,37.11032375,126.09,126.02,62.0]
[1743429863044,7.9332,126.08,126.03,7.9357]
[1743429863345,39.36,126.1,126.01,39.32]
[1743429863648,0.05521329,126.07,126.04,0.05494137]
[1743429863845,0.05521329,126.07,126.05,39.34]
[1743429864653,0.05521329,126.07,126.05,47.2745]
[1743429864853,0.05521329,126.07,126.05,39.34]
[1743429865650,0.05521329,126.07,126.05,47.2744]
[1743429865859,0.05521329,126.07,126.05,39.34]
[1743429866255,0.05521329,126.07,126.06,62.0]
[1743429868255,0.05521329,126.07,126.04,0.05494137]
[1743429869153,7.9344,126.06,126.04,0.05494137]
[1743429869552,0.05521329,126.07,126.04,0.05494137]
[1743429869949,37.16553704,126.07,126.04,0.05494137]
[1743429870761,37.11032375,126.05,125.99,39.0]
[1743429871364,7.9376,126.01,125.99,101.0]
[1743429871564,37.11032375,126.05,125.99,101.0]
[1743429871862,0.05289973,126.03,125.99,101.0]
[1743429872062,0.05289973,126.03,126.01,0.05607253]
[1743429872562,7.9366,126.02,126.01,0.05607253]
[1743429874458,0.05289973,126.03,126.01,0.05607253]